Cogmind - Beta 14 @@@ ROGUE MODE // 2024.12.15 @ 12:58:52 Player: Mathewnd Result: Destroyed by G-47 Trooper with Particle Gun Performance ------------- Evolutions (2) 1000 Regions Visited (4) 800 Robots Destroyed (29) 145 Value Destroyed (704) 704 Prototype IDs (0) 0 Alien Tech Used (0) 0 Bonus (0) 0 TOTAL SCORE: 2649 Bonus ------- None Cogmind --------- Core Integrity 0/550 Matter 300/300 Energy 100/100 System Corruption 0% Temperature Cool (9) Movement Core (350) Ox6 Location -8/Materials Parts ------- > --- POWER (1) -------- (None) > --- PROPULSION (4) --- (None) > --- UTILITY (4) ------ Large Storage Unit Signal Interpreter > --- WEAPON (2) ------- (None) > --- INVENTORY (15) --- Flight Unit Flight Unit Flight Unit Flight Unit Flight Unit Small Storage Unit Visual Processing Unit Sensor Array Peak State ------------ > --- POWER ------------ (None) > --- PROPULSION ------- Light Treads Titanium Leg > --- UTILITY ---------- Large Storage Unit Signal Interpreter Hardened Light Armor Plating > --- WEAPON ----------- Light Assault Rifle Shotgun > --- INVENTORY -------- Flight Unit Flight Unit Flight Unit Flight Unit Flight Unit Small Storage Unit Visual Processing Unit Sensor Array Small Laser Plasma Cutter [Rating: 12] Favorites ----------- Power Ion Engine Engine Ion Engine Propulsion Light Treads Treads Light Treads Leg Aluminum Leg Utility Small Storage Unit Device Sensor Array Storage Small Storage Unit Processor Signal Interpreter Protection Hardened Light Armor Plating Weapon Light Assault Rifle Energy Gun Small Laser Ballistic Gun Light Assault Rifle Special Weapon Plasma Cutter Build | -11 -10 -10 -9 -8 ------- Run | Yrd Mat Min Mat Mat Slots Evolved 4 | . . . 2 2 Power . | . . . . . Propulsion 2 | . . . 2 . Utility 2 | . . . . 2 Weapon . | . . . . . Parts Attached 26 | 8 1 . 12 5 Power 3 | 1 . . 2 . Engine 3 | 1 . . 2 . Core . | . . . . . Reactor . | . . . . . Propulsion 11 | 4 . . 6 1 Treads 6 | 2 . . 4 . Leg 5 | 2 . . 2 1 Wheel . | . . . . . Hover . | . . . . . Flight . | . . . . . Utility 5 | 1 1 . 1 2 Device 1 | . . . . 1 Storage 2 | 1 . . 1 . Processor 1 | . 1 . . . Hackware . | . . . . . Protection 1 | . . . . 1 Artifact . | . . . . . Weapon 7 | 2 . . 3 2 Energy Gun 2 | . . . 1 1 Energy Cannon . | . . . . . Ballistic Gun 4 | 2 . . 2 . Ballistic Cannon . | . . . . . Launcher . | . . . . . Special Weapon 1 | . . . . 1 Impact Weapon . | . . . . . Slashing Weapon . | . . . . . Piercing Weapon . | . . . . . Special Melee Weapon . | . . . . . Unidentified Prototypes . | . . . . . Parts Lost 18 | . . . 11 7 Power 3 | . . . 3 . Propulsion 8 | . . . 6 2 Utility 1 | . . . . 1 Weapon 6 | . . . 2 4 Highest Loss Streak 8 | . . . 8 6 To Critical Strikes . | . . . . . Average Slot Usage (%) 73 | . 85 100 68 50 Engine 6 | . 14 14 4 . Treads 16 | . 28 28 13 5 Leg 4 | . . . 7 6 Storage 11 | . 14 14 11 9 Processor 9 | . . 14 11 9 Protection 1 | . . . . 6 Energy Gun 2 | . . . 5 . Ballistic Gun 19 | . 28 28 15 12 Peak Build Rating 12 | 6 7 7 9 12 Average Rating 6 | 5 6 7 6 9 On Entrance 5 | . 6 7 7 7 Naked Turns . | . . . . . Heaviest Build 29 | 13 13 13 24 29 Greatest Support 60 | 40 40 40 60 20 Greatest Overweight (x) 9 | . . . 2 9 Average Overweight (x) . | . . . . 1 Largest Inventory Capacity 15 | 8 8 8 15 15 Average Capacity 9 | 7 8 8 9 15 Most Carried 11 | 7 8 7 11 11 Average Carried 7 | 5 7 7 8 9 Final Capacity 15 | 8 8 8 15 15 Final Carried 11 | 6 7 7 11 8 Class Distribution -------------------- 95% | Mutant 4% | Scavenger-Mutant Dominant Class ---------------- Mutant | -10/Materials Mutant | -10/Mines Mutant | -9/Materials Mutant | -8/Materials Resources | -11 -10 -10 -9 -8 ----------- Run | Yrd Mat Min Mat Mat Matter Collected 729 | 245 191 10 181 102 Remotely . | . . . . . Salvage Created 883 | . 326 . 416 141 Parts 75 | . 22 . 49 4 Haulers Intercepted . | . . . . . Recyclers Shooed 1 | . . . 1 . Parts Field Recycled . | . . . . . Retrieved Matter . | . . . . . Parts Self-Destructed . | . . . . . Prevented . | . . . . . Kills | -11 -10 -10 -9 -8 ------- Run | Yrd Mat Min Mat Mat Combat Hostiles Destroyed 24 | . 8 . 13 3 Guns 23 | . 8 . 13 2 Cannons 1 | . . . . 1 Classes Destroyed 7 | . 4 . 2 1 Tunneler 1 | . . . 1 . Recycler 1 | . 1 . . . Watcher 3 | . 1 . 2 . Swarmer 11 | . 3 . 8 . Grunt 8 | . 5 . 2 1 Sentry 4 | . . . 3 1 Hunter 1 | . . . . 1 Best Kill Streak 5 | . 3 . 5 1 Combat Bots Only 5 | . 3 . 5 1 Max Kills in Single Turn 1 | . 1 . 1 1 Gunslinging . | . . . . . Exploded . | . . . . . Melee . | . . . . . Uniques/NPCs Destroyed . | . . . . . Combat | -11 -10 -10 -9 -8 -------- Run | Yrd Mat Min Mat Mat Hostile Shots Fired 313 | . 49 . 139 125 Missed 88 | . 11 . 41 36 Damage Taken 2900 | . 423 . 1067 1410 Core 848 | . 89 . 207 552 Absorbed by Shields . | . . . . . Core Remaining (%) 70 | 100 . 64 48 . Volleys Fired 109 | . 39 . 50 20 Largest 2 | . 2 . 2 2 Hottest 63 | . 40 . 60 63 Shots Fired 201 | . 78 . 90 33 Gun 197 | . 78 . 90 29 Cannon . | . . . . . Launcher . | . . . . . Special 4 | . . . . 4 Kinetic 170 | . 78 . 66 26 Thermal 31 | . . . 24 7 Explosive . | . . . . . Electromagnetic . | . . . . . Robot Hit Streak 9 | . 9 . 8 8 Robot Miss Streak 5 | . 2 . 5 3 Penetration Max . | . . . . . Secondary Targets 4 | . 1 . 3 . Max Gunslinging Chain 1 | . 1 . 1 . Shots Hit Robots 132 | . 53 . 56 23 Core Hits 53 | . 17 . 26 10 Critical Kills . | . . . . . Critical Parts Destroyed . | . . . . . Critical Strikes 1 | . . . . 1 Sever 1 | . . . . 1 Melee Attacks . | . . . . . Impact . | . . . . . Slashing . | . . . . . Piercing . | . . . . . Sneak Attacks . | . . . . . Combat Hostiles . | . . . . . Follow-up Attacks . | . . . . . Damage Inflicted 1413 | . 557 . 574 282 Guns 1376 | . 557 . 574 245 Cannons . | . . . . . Explosions . | . . . . . Melee . | . . . . . Ramming 1 | . . . . 1 Kinetic 1175 | . 557 . 397 221 Thermal 237 | . . . 177 60 Explosive . | . . . . . Electromagnetic . | . . . . . Impact . | . . . . . Slashing . | . . . . . Piercing . | . . . . . Highest Corruption 2 | . . . 2 . Average Corruption 2 | . . . 2 . Corruption Purged . | . . . . . Corruption Blocked . | . . . . . Effects 7 | . . . 7 . Message Errors 2 | . . . 2 . Matter Fused 1 | . . . 1 . Heat Flow Errors 1 | . . . 1 . Energy Discharges 1 | . . . 1 . Data Loss (minor) 1 | . . . 1 . Misfires 1 | . . . 1 . Overload Shots . | . . . . . Overflow Damage . | . . . . . Projectiles . | . . . . . Explosions . | . . . . . Melee . | . . . . . Knockbacks . | . . . . . Impact . | . . . . . Kinetic . | . . . . . Secondary . | . . . . . Self-Inflicted Damage . | . . . . . Shots . | . . . . . Rammed . | . . . . . Targets Rammed 2 | . . . . 2 Kicked 2 | . . . . 2 Crushed . | . . . . . Highest Temperature 278 | . 18 . 278 20 Average Temperature 26 | . 7 . 44 8 Received Heat Transfer 1119 | . 225 . 192 702 Siege Activations . | . . . . . Robots Corrupted . | . . . . . Combat Hostiles . | . . . . . Parts Fried . | . . . . . Impact Corruptions . | . . . . . Robots Melted . | . . . . . Combat Hostiles . | . . . . . Parts Melted 1 | . . . 1 . Heat Transferred 561 | . . . 400 161 Parts Sabotaged . | . . . . . Parts Stolen . | . . . . . Parts Stripped . | . . . . . Power Chain Reactions . | . . . . . Alert | -11 -10 -10 -9 -8 ------- Run | Yrd Mat Min Mat Mat Peak Influence 321 | . 267 103 321 140 Initial 103 | . . 103 39 85 Average 123 | . 141 103 183 112 Maximum Alert Level 1 | . 1 . 1 . Low Security (%) 77 | 100 80 100 45 100 Level 1 22 | . 19 . 54 . Level 2 . | . . . . . Level 3 . | . . . . . Level 4 . | . . . . . Level 5 . | . . . . . High Security . | . . . . . Max Security . | . . . . . Squads Dispatched . | . . . . . Investigation . | . . . . . Extermination . | . . . . . Reinforcement . | . . . . . Assault . | . . . . . Garrison . | . . . . . Intercept . | . . . . . Searches Triggered . | . . . . . Construction Impeded . | . . . . . Haulers Reinforced . | . . . . . Active Scanning Responses . | . . . . . Cargo Convoy Interrupts . | . . . . . Stealth | -11 -10 -10 -9 -8 --------- Run | Yrd Mat Min Mat Mat Distress Signals 4 | . 3 . . 1 Communications Jammed . | . . . . . Distress Signals . | . . . . . Times Spotted 55 | . 17 . 29 9 Peak Tracking Total 12 | . 5 . 12 6 Tactical Retreats 6 | . 3 . 3 . Traps | -11 -10 -10 -9 -8 ------- Run | Yrd Mat Min Mat Mat Traps Triggered 1 | . . . 1 . Indirectly . | . . . . . Trap Hack Attempts . | . . . . . Triggered . | . . . . . Disarmed . | . . . . . Reprogrammed . | . . . . . Reused . | . . . . . Traps Extracted . | . . . . . Installed . | . . . . . Triggered . | . . . . . Machines | -11 -10 -10 -9 -8 ---------- Run | Yrd Mat Min Mat Mat Machines Disabled . | . . . . . Max in Single Turn . | . . . . . Machines Repaired . | . . . . . Machines Dismantled . | . . . . . Machines Sabotaged . | . . . . . Overloaded Fab Kills . | . . . . . Hacking | -11 -10 -10 -9 -8 --------- Run | Yrd Mat Min Mat Mat Machines Accessed 5 | . 2 . 2 1 Terminals 5 | . 2 . 2 1 Fabricators . | . . . . . Repair Stations . | . . . . . Recycling Units . | . . . . . Scanalyzers . | . . . . . Garrison Access . | . . . . . Total Hacks 12 | . 3 . 6 3 Successful 7 | . 2 . 3 2 Failed 5 | . 1 . 3 1 Catastrophic 1 | . 1 . . . Database Lockouts . | . . . . . Manual 1 | . . . . 1 Terminals 12 | . 3 . 6 3 Fabricators . | . . . . . Repair Stations . | . . . . . Recycling Units . | . . . . . Scanalyzers . | . . . . . Garrison Access . | . . . . . Terminal Hacks 7 | . 2 . 3 2 Alert Level 2 | . . . 1 1 Locate Traps 1 | . 1 . . . Hauler Manifests 1 | . . . 1 . Registered Components 2 | . 1 . 1 . Zone Layout 1 | . . . . 1 Fabricator Hacks . | . . . . . Repair Station Hacks . | . . . . . Recycling Unit Hacks . | . . . . . Scanalyzer . | . . . . . Garrison Access Hacks . | . . . . . Unauthorized Hacks . | . . . . . Terminals . | . . . . . Fabricators . | . . . . . Repair Stations . | . . . . . Recycling Units . | . . . . . Scanalyzers . | . . . . . Garrison Access . | . . . . . Data Cores Recovered . | . . . . . Used . | . . . . . Hacking Detections 4 | . 2 . 1 1 Full Trace Events . | . . . . . Feedback Events . | . . . . . Feedback Blocked . | . . . . . Robot Schematics Acquired . | . . . . . Robots Built . | . . . . . Authchips . | . . . . . Time . | . . . . . Total Robot Build Rating . | . . . . . Part Schematics Acquired . | . . . . . Parts Built . | . . . . . Authchips . | . . . . . Time . | . . . . . Total Part Build Rating . | . . . . . Parts Repaired . | . . . . . Time . | . . . . . Parts Recycled . | . . . . . Recycled Matter . | . . . . . Retrieved Matter . | . . . . . Retrieved Components . | . . . . . Parts Scanalyzed . | . . . . . Part Schematics Acquired . | . . . . . Parts Damaged . | . . . . . Bothacking | -11 -10 -10 -9 -8 ------------ Run | Yrd Mat Min Mat Mat Used RIF Installer . | . . . . . Robots Hacked . | . . . . . Non-combat . | . . . . . Combat . | . . . . . Robot Hacks Applied . | . . . . . Relay Couplers Released . | . . . . . Fabnet Peak Effective % . | . . . . . Robots Rewired . | . . . . . Allies Hacked . | . . . . . Hacks Repelled . | . . . . . Allies | -11 -10 -10 -9 -8 -------- Run | Yrd Mat Min Mat Mat Total Allies . | . . . . . Largest Group . | . . . . . Highest-Rated Group . | . . . . . Highest-Rated Ally . | . . . . . Total Orders . | . . . . . Ally Attacks . | . . . . . Total Damage . | . . . . . Kills . | . . . . . Allies Corrupted . | . . . . . Allies Melted . | . . . . . Intel | -11 -10 -10 -9 -8 ------- Run | Yrd Mat Min Mat Mat Robot Analysis Total . | . . . . . Derelict Logs Recovered 2 | . . 2 . . Drone Launches . | . . . . . Drone Recoveries . | . . . . . Exploration | -11 -10 -10 -9 -8 ------------- Run | Yrd Mat Min Mat Mat Turns Passed 2147 | 333 301 344 791 378 Spaces Moved 994 | 206 116 216 343 113 Core 93 | 6 . . 76 11 Treads 801 | 175 116 216 222 72 Legs 100 | 25 . . 45 30 Wheels . | . . . . . Hover . | . . . . . Flight . | . . . . . Fastest Speed 50 | 50 160 160 100 200 Average Speed 172 | 151 160 160 172 245 Slowest Speed 500 | 160 160 160 240 500 Overloaded Moves . | . . . . . Propulsion Burnouts . | . . . . . Robots Hopped . | . . . . . Cave-ins Triggered . | . . . . . Exploration Rate (%) 31 | 15 33 63 34 13 Regions Visited 4 Branch Regions 1 Pre-discovered Areas 1 | . . 1 . . Known Exits Taken 3 | . 1 1 1 . Unknown Exits Taken 1 | 1 . . . . Scrap Searched 1 | . . 1 . . Spaces Dug . | . . . . . Terrain Destroyed . | . . . . . Melee . | . . . . . Projectile . | . . . . . AOE . | . . . . . Terrain Rammed . | . . . . . Walls Destroyed . | . . . . . Machines Disabled . | . . . . . Actions | -11 -10 -10 -9 -8 --------- Run | Yrd Mat Min Mat Mat Total 1241 | 225 162 215 461 178 Wait 79 | . 1 . 42 36 Move 990 | 205 115 215 342 113 Hop . | . . . . . Pick Up 29 | 12 4 . 12 1 Fast Attach 3 | . . . 3 . Attach 19 | 6 1 . 7 5 Detach 1 | . . . . 1 Swap 4 | 2 . . 2 . Drop 5 | . 2 . 3 . Fire 109 | . 39 . 50 20 Melee . | . . . . . Ram . | . . . . . Kick 2 | . . . . 2 Crush . | . . . . . Escape Stasis . | . . . . . Rewire . | . . . . . Trap . | . . . . . Miscellaneous . | . . . . . Route ------- -11/Scrapyard -10/Materials -10/Mines -9/Materials (discovered 2 exits: *Mat / [*Min]) -8/Materials History --------- Turn | Location | Event 5 | -11/Scrapyard | Discovered new exit (range 15) 334 | -11/Scrapyard | Entered Materials 335 | -10/Materials | Build established: Mutant 624 | -10/Materials | Discovered new exit (range 7) 635 | -10/Materials | Identified exit to Mines 635 | -10/Materials | Entered Mines 648 | -10/Mines | Learned Materials emergency access door positions 971 | -10/Mines | Discovered new exit (range 5) 978 | -10/Mines | Identified exit to Materials 979 | -10/Mines | Entered Materials 979 | -9/Materials | Evolved 2 slots: Propulsion x2 1090 | -9/Materials | Lost 3 parts (1p2n) 1348 | -9/Materials | Discovered new exit (range 16) 1352 | -9/Materials | Lost 8 parts (2p4n2w) 1540 | -9/Materials | Core integrity fell below 50% 1688 | -9/Materials | Discovered new exit (range 16) 1734 | -9/Materials | Identified exit to Materials 1770 | -9/Materials | Entered another Materials area 1770 | -8/Materials | Evolved 2 slots: Utility x2 2089 | -8/Materials | Core integrity fell below 50% 2091 | -8/Materials | Lost 6 parts (1n1u4w) 2135 | -8/Materials | Core integrity fell below 20% 2148 | -8/Materials | Destroyed by G-47 Trooper with Particle Gun Last Messages --------------- Retrieving Zone 4W layout... Downloaded map data. W-25 Informer sends out distress signal. Lgt. Assault Rifle destroyed. Lgt. Treads destroyed. Y-45 Defender destroyed. Acquired 9 matter. Critical hit (Burn: +37). Atomic Centrifuge disabled. Sml. Laser destroyed. Shotgun destroyed. Kicked G-47 Trooper. Hrd. Light Armor Plating destroyed. G-47 Trooper Lgt. Nuclear Core severed. G-47 Trooper destroyed. Plasma Cutter destroyed. Acquired 7 matter. Kicked G-47 Trooper. Titanium Leg destroyed. Critical hit (Burn: +37). Map ----- +----------------------------------------------------+ | ?????????????????????????????????????????????????? | | ?????????????????????????????????????????????????? | | ?????????????????????????????????????????????????? | | ?????????????????????????????????????????????????? | | ?????????????????????????????????????????????????? | | ?????????????????????????????????????????????????? | | ??????????? ???????????????????????????????????? | | ?????????? ??????????????????????????????????? | | ??????????# #??????????????????????????????????? | | ??????????# #??????????????????????????????????? | | ??????????# #??????????????????????????????????? | | ??????????# #??????????????????????????????????? | | ??????????# #??????????????????????????????????? | | ??????????# #??????????????????????????????????? | | ??????????# #??????????????????????????????????? | | ########### #??????????????????????????????????? | | #??????????????????????????????????? | | #????????????????????#?????????????? | | ################## #?????????????? | | #?????????????? | | #?????????????? | | % gu #?????????????? | | #####/###########g#######?????????????????? | | ####+#### ## #????????????????????? | | # #"S ## !! #????????????????????? | | # #""" """ ## @! #????????????????????? | | # # "" """ ##Y [ #????????????????????? | | / # """ # #????????????????????? | | # # ## #????????????????????? | | ######### ?########????????????????????? | | #?#############?????????????????????????????? | | """ #?# #???????????????????????????????? | | """ #?# #???????????????????????????????? | | """ #?# #???????????????????????????????? | | #?# #???????????????????????????????? | | "#?# #???????????????????????????????? | | T#?# #???????????????????????????????? | | "#?# #???????????????????????????????? | | #?# #???????????????????????????????? | | #############+######?????????????????????????????? | | ?????????????????????????????? | | ?????????????????????????????? | | ?????????????????????????????? | | ######+####### ###?????????????????????????????? | | """ # ## # ?????????????????????????????? | | "Y" # ## # ?????????????????????????????? | | # ## # ?????????????????????????????? | | # ## # ?????????????????????????????? | | # ## # ?????????????????????????????? | | " # ## # ?????????????????????????????? | +----------------------------------------------------+ Best States ------------- Heat Dissipation 31 Energy Generation 10 Energy Capacity 250 Matter Stores 300 Matter Capacity 300 Sight Range 16 Terrain Scan Density 10 Armor Coverage 150 Evasion (%) 55 Recoil Reduction 3 Item Schematics ----------------- None Robot Schematics ------------------ None Fabricated ------------ Nothing Alien Tech Used ----------------- None Achievements -------------- None Challenges ------------ None Game ------ Seed NuclearPulseBotcube Manual? 0 Play Time 00:22:05 Cumulative 41.3 hours Start 2024.12.15 @ 11:14:13 End 2024.12.15 @ 12:58:52 Sessions 1 Manual Loads 0 Difficulty Rogue Special Mode None Game No. 48 Rogue 48 Adventurer 0 Explorer 0 Win Type - Total 0 Types 0/0/0/0/0/0/0/0/0 Lore% 18 Gallery% 33 Achievement% 30 Wizard Run 0 Options --------- Layout 1 ASCII 0 Keyboard 0 Movement Mouse Keybinds 0 Fullscreen 1 Font 24/Smallcaps Map View 50x35 Zoom Use 0% Tactical HUD 0 Map Filters NONE Filters NONE Steam 1 RUN: 8af1471a-e9e0-4f65-9009-6d64e5e053de